[Event "Titled Tuesday Blitz February 14 Early 2023"]
[White "Horobetz, Graham"]
[Black "Mirzanurov, Bulat"]
[WhiteFideId "2047322"]
[BlackFideId "4184521"]
[WhiteElo "2140"]
[BlackElo "2232"]
[Result "1-0"]
[Round "03"]
[TimeControl "180+2"]
[Date "2023.02.15"]
[WhiteClock "0:00:18"]
[BlackClock "0:00:12"]

1. e4 {[%clk 0:03:00]}  c5 {[%clk 0:02:59]} 2. Nf3 {[%clk 0:03:00]}  d6 {[%clk 0:02:58]} 3. d4 {[%clk 0:03:01]}  cxd4 {[%clk 0:02:59]} 4. Nxd4 {[%clk 0:03:01]}  Nf6 {[%clk 0:02:59]} 5. Nc3 {[%clk 0:03:02]}  a6 {[%clk 0:02:58]} 6. Be3 {[%clk 0:02:59]}  e5 {[%clk 0:02:57]} 7. Nb3 {[%clk 0:02:59]}  Be7 {[%clk 0:02:55]} 8. f3 {[%clk 0:02:58]}  Be6 {[%clk 0:02:55]} 9. Qd2 {[%clk 0:02:59]}  O-O {[%clk 0:02:56]} 10. O-O-O {[%clk 0:02:57]}  Nbd7 {[%clk 0:02:55]} 11. Kb1 {[%clk 0:02:48]}  b5 {[%clk 0:02:54]} 12. Nd5 {[%clk 0:02:48]}  Bxd5 {[%clk 0:02:48]} 13. exd5 {[%clk 0:02:48]}  Nb6 {[%clk 0:02:41]} 14. Bxb6 {[%clk 0:02:41]}  Qxb6 {[%clk 0:02:38]} 15. Na5 {[%clk 0:02:41]}  Rac8 {[%clk 0:02:38]} 16. Nc6 {[%clk 0:02:39]}  Nxd5 {[%clk 0:02:28]} 17. Nxe7+ {[%clk 0:02:08]}  Nxe7 {[%clk 0:02:29]} 18. f4 {[%clk 0:02:02]}  Rfd8 {[%clk 0:02:24]} 19. Bd3 {[%clk 0:01:59]}  Ng6 {[%clk 0:02:11]} 20. g3 {[%clk 0:01:55]}  d5 {[%clk 0:01:55]} 21. Bxg6 {[%clk 0:01:44]}  hxg6 {[%clk 0:01:56]} 22. fxe5 {[%clk 0:01:45]}  Qe6 {[%clk 0:01:56]} 23. Rhe1 {[%clk 0:01:40]}  d4 {[%clk 0:01:54]} 24. Re4 {[%clk 0:01:37]}  Qf5 {[%clk 0:01:44]} 25. Qe2 {[%clk 0:01:12]}  Rc5 {[%clk 0:01:16]} 26. a3 {[%clk 0:00:42]}  Rcd5 {[%clk 0:01:12]} 27. Rd3 {[%clk 0:00:40]}  Re8 {[%clk 0:01:02]} 28. g4 {[%clk 0:00:36]}  Qg5 {[%clk 0:00:52]} 29. e6 {[%clk 0:00:35]}  fxe6 {[%clk 0:00:45]} 30. Rxe6 {[%clk 0:00:36]}  Rf8 {[%clk 0:00:42]} 31. Qe4 {[%clk 0:00:31]}  Rd7 {[%clk 0:00:19]} 32. Rxg6 {[%clk 0:00:18]}  Rf1+ {[%clk 0:00:19]} 33. Ka2 {[%clk 0:00:19]}  Qd8 {[%clk 0:00:19]} 34. Rxa6 {[%clk 0:00:17]}  Re7 {[%clk 0:00:13]} 35. Ra8 {[%clk 0:00:14]}  Rxe4 {[%clk 0:00:12]} 36. Rxd8+ {[%clk 0:00:14]}  Kh7 {[%clk 0:00:13]} 37. R8xd4 {[%clk 0:00:15]}  Rff4 {[%clk 0:00:13]} 38. Rxe4 {[%clk 0:00:15]}  Rxe4 {[%clk 0:00:14]} 39. h3 {[%clk 0:00:16]}  Rc4 {[%clk 0:00:13]} 40. c3 {[%clk 0:00:15]}  Kg6 {[%clk 0:00:13]} 41. Rd6+ {[%clk 0:00:16]}  Kg5 {[%clk 0:00:13]} 42. Rd5+ {[%clk 0:00:16]}  Kh4 {[%clk 0:00:14]} 43. Rxb5 {[%clk 0:00:16]}  Kxh3 {[%clk 0:00:15]} 44. g5 {[%clk 0:00:17]}  Kg4 {[%clk 0:00:14]} 45. Kb3 {[%clk 0:00:17]}  Rc7 {[%clk 0:00:13]} 46. a4 {[%clk 0:00:17]}  Kh5 {[%clk 0:00:13]} 47. a5 {[%clk 0:00:18]}  Kg6 {[%clk 0:00:13]} 48. Ka4 {[%clk 0:00:17]}  Ra7 {[%clk 0:00:13]} 49. c4 {[%clk 0:00:18]}  Kf7 {[%clk 0:00:12]} 50. b4 {[%clk 0:00:18]}  Kg6 {[%clk 0:00:12]} 51. Rc5 {[%clk 0:00:18]}  Kh5 {[%clk 0:00:12]} 52. b5 {[%clk 0:00:18]}  Kg6 {[%clk 0:00:12]} 53. b6 {[%clk 0:00:19]}  Ra6 {[%clk 0:00:12]} 54. Kb5 {[%clk 0:00:19]}  Ra8 {[%clk 0:00:12]} 55. b7 {[%clk 0:00:19]}  Rb8 {[%clk 0:00:13]} 56. a6 {[%clk 0:00:19]}  Rf8 {[%clk 0:00:11]} 57. a7 {[%clk 0:00:18]}  Re8 {[%clk 0:00:12]} 1-0


[Site "https://www.chess.com"]

[Event "Titled Tuesday Blitz February 14 Early 2023"]
[White "Babikov, Ivan"]
[Black "Florescu, Codrut-Constantin"]
[WhiteFideId "4161106"]
[BlackFideId "1202200"]
[WhiteElo "2239"]
[BlackElo "2259"]
[Result "0-1"]
[Round "03"]
[TimeControl "180+2"]
[Date "2023.02.15"]
[WhiteClock "0:00:01"]
[BlackClock "0:00:33"]

1. Nf3 {[%clk 0:03:00]}  d5 {[%clk 0:02:59]} 2. g3 {[%clk 0:03:01]}  Nf6 {[%clk 0:02:59]} 3. Bg2 {[%clk 0:03:01]}  e6 {[%clk 0:02:59]} 4. O-O {[%clk 0:03:02]}  Be7 {[%clk 0:03:00]} 5. d4 {[%clk 0:03:02]}  O-O {[%clk 0:03:01]} 6. c4 {[%clk 0:03:03]}  c6 {[%clk 0:03:02]} 7. Nc3 {[%clk 0:03:02]}  Nbd7 {[%clk 0:03:02]} 8. b3 {[%clk 0:03:01]}  b6 {[%clk 0:03:02]} 9. Bb2 {[%clk 0:03:01]}  Ba6 {[%clk 0:03:02]} 10. Nd2 {[%clk 0:02:47]}  b5 {[%clk 0:03:02]} 11. cxb5 {[%clk 0:02:46]}  cxb5 {[%clk 0:03:01]} 12. e4 {[%clk 0:02:46]}  b4 {[%clk 0:02:54]} 13. Ne2 {[%clk 0:02:46]}  Nxe4 {[%clk 0:02:41]} 14. Nxe4 {[%clk 0:02:45]}  dxe4 {[%clk 0:02:42]} 15. Bxe4 {[%clk 0:02:46]}  Rc8 {[%clk 0:02:41]} 16. Bd3 {[%clk 0:02:43]}  Bb7 {[%clk 0:02:37]} 17. Nf4 {[%clk 0:02:38]}  Nf6 {[%clk 0:02:37]} 18. Qe2 {[%clk 0:02:30]}  Qb6 {[%clk 0:02:31]} 19. Rac1 {[%clk 0:02:24]}  Rfd8 {[%clk 0:02:28]} 20. Nh5 {[%clk 0:02:12]}  Nxh5 {[%clk 0:02:19]} 21. Qxh5 {[%clk 0:02:11]}  g6 {[%clk 0:02:19]} 22. Qe2 {[%clk 0:02:10]}  Qa5 {[%clk 0:02:14]} 23. Be4 {[%clk 0:01:39]}  Bxe4 {[%clk 0:02:11]} 24. Qxe4 {[%clk 0:01:40]}  Qxa2 {[%clk 0:02:10]} 25. Rb1 {[%clk 0:01:29]}  Qxb3 {[%clk 0:02:05]} 26. Qb7 {[%clk 0:01:14]}  Bf8 {[%clk 0:01:51]} 27. Qxa7 {[%clk 0:01:11]}  Qd5 {[%clk 0:01:45]} 28. Rfd1 {[%clk 0:01:08]}  Rc2 {[%clk 0:01:42]} 29. Rdc1 {[%clk 0:01:00]}  Rdc8 {[%clk 0:01:42]} 30. Rxc2 {[%clk 0:00:57]}  Rxc2 {[%clk 0:01:43]} 31. Qa4 {[%clk 0:00:53]}  Qe4 {[%clk 0:01:31]} 32. Ba1 {[%clk 0:00:39]}  Rxf2 {[%clk 0:01:07]} 33. Kxf2 {[%clk 0:00:34]}  Qxb1 {[%clk 0:01:07]} 34. d5 {[%clk 0:00:16]}  Qf5+ {[%clk 0:01:06]} 35. Kg1 {[%clk 0:00:16]}  Bc5+ {[%clk 0:01:03]} 36. Kg2 {[%clk 0:00:14]}  Qxd5+ {[%clk 0:01:02]} 37. Kh3 {[%clk 0:00:14]}  Qf5+ {[%clk 0:00:50]} 38. Kg2 {[%clk 0:00:14]}  f6 {[%clk 0:00:36]} 39. Qe8+ {[%clk 0:00:09]}  Kg7 {[%clk 0:00:34]} 40. Qd7+ {[%clk 0:00:09]}  Kh6 {[%clk 0:00:34]} 41. Qd2+ {[%clk 0:00:09]}  g5 {[%clk 0:00:34]} 42. Qd8 {[%clk 0:00:02]}  Qd5+ {[%clk 0:00:33]} 43. Qxd5 {[%clk 0:00:02]}  exd5 {[%clk 0:00:34]} 44. Bxf6 {[%clk 0:00:02]}  d4 {[%clk 0:00:35]} 45. Kf2 {[%clk 0:00:01]}  b3 {[%clk 0:00:35]} 46. h4 {[%clk 0:00:01]}  b2 {[%clk 0:00:32]} 47. Bxg5+ {[%clk 0:00:01]}  Kg6 {[%clk 0:00:33]} 0-1


[Site "https://www.chess.com"]

[Event "Titled Tuesday Blitz February 14 Early 2023"]
[White "Martynov, Pavel"]
[Black "Delorme, Axel"]
[WhiteFideId "4101260"]
[BlackFideId "632023"]
[WhiteElo "2414"]
[BlackElo "2483"]
[Result "1-0"]
[Round "03"]
[TimeControl "180+2"]
[Date "2023.02.15"]
[WhiteClock "0:00:06"]
[BlackClock "0:00:01"]

1. e4 {[%clk 0:03:00]}  c5 {[%clk 0:02:59]} 2. Nf3 {[%clk 0:03:00]}  d6 {[%clk 0:02:59]} 3. Bb5+ {[%clk 0:03:00]}  Nd7 {[%clk 0:02:59]} 4. O-O {[%clk 0:03:00]}  a6 {[%clk 0:02:56]} 5. Bxd7+ {[%clk 0:03:00]}  Bxd7 {[%clk 0:02:57]} 6. c3 {[%clk 0:03:00]}  Nf6 {[%clk 0:02:57]} 7. Re1 {[%clk 0:03:00]}  Bc6 {[%clk 0:02:58]} 8. d4 {[%clk 0:03:01]}  Bxe4 {[%clk 0:02:58]} 9. Bg5 {[%clk 0:03:01]}  Bd5 {[%clk 0:02:58]} 10. c4 {[%clk 0:03:01]}  Bxf3 {[%clk 0:02:58]} 11. Qxf3 {[%clk 0:03:00]}  cxd4 {[%clk 0:02:58]} 12. Bxf6 {[%clk 0:02:59]}  gxf6 {[%clk 0:02:58]} 13. Qxf6 {[%clk 0:02:59]}  Rg8 {[%clk 0:02:46]} 14. Qxd4 {[%clk 0:02:58]}  Bg7 {[%clk 0:02:44]} 15. Qd2 {[%clk 0:02:43]}  Qd7 {[%clk 0:02:23]} 16. Nc3 {[%clk 0:02:36]}  Qg4 {[%clk 0:02:04]} 17. Nd5 {[%clk 0:02:07]}  Bc3 {[%clk 0:00:44]} 18. Rxe7+ {[%clk 0:01:05]}  Kd8 {[%clk 0:00:45]} 19. Re8+ {[%clk 0:00:42]}  Kxe8 {[%clk 0:00:37]} 20. Qe3+ {[%clk 0:00:42]}  Kf8 {[%clk 0:00:24]} 21. Qh6+ {[%clk 0:00:27]}  Rg7 {[%clk 0:00:12]} 22. Qxd6+ {[%clk 0:00:20]}  Kg8 {[%clk 0:00:12]} 23. Ne3 {[%clk 0:00:12]}  Qg6 {[%clk 0:00:10]} 24. Qxg6 {[%clk 0:00:11]}  Rxg6 {[%clk 0:00:10]} 25. bxc3 {[%clk 0:00:12]}  Rd8 {[%clk 0:00:10]} 26. Rb1 {[%clk 0:00:12]}  Rgd6 {[%clk 0:00:09]} 27. g3 {[%clk 0:00:12]}  R6d7 {[%clk 0:00:10]} 28. Rb6 {[%clk 0:00:11]}  Kg7 {[%clk 0:00:10]} 29. Kg2 {[%clk 0:00:11]}  Rc8 {[%clk 0:00:10]} 30. a4 {[%clk 0:00:10]}  Rc6 {[%clk 0:00:10]} 31. Rb2 {[%clk 0:00:09]}  Rcc7 {[%clk 0:00:09]} 32. h4 {[%clk 0:00:09]}  Rd3 {[%clk 0:00:09]} 33. Rb3 {[%clk 0:00:10]}  h5 {[%clk 0:00:03]} 34. Kf3 {[%clk 0:00:10]}  Rxc4 {[%clk 0:00:02]} 35. Rxb7 {[%clk 0:00:05]}  Rcxc3 {[%clk 0:00:03]} 36. Rb6 {[%clk 0:00:05]}  a5 {[%clk 0:00:02]} 37. Rb5 {[%clk 0:00:06]}  Rb3 {[%clk 0:00:02]} 38. Rxa5 {[%clk 0:00:05]}  Rdc3 {[%clk 0:00:02]} 39. Rxh5 {[%clk 0:00:05]}  Ra3 {[%clk 0:00:03]} 40. Rg5+ {[%clk 0:00:06]}  Kf8 {[%clk 0:00:03]} 41. a5 {[%clk 0:00:05]}  Rc1 {[%clk 0:00:02]} 42. h5 {[%clk 0:00:05]}  Rca1 {[%clk 0:00:03]} 43. h6 {[%clk 0:00:06]}  Rxa5 {[%clk 0:00:04]} 44. h7 {[%clk 0:00:05]}  Rxg5 {[%clk 0:00:01]} 45. h8=Q+ {[%clk 0:00:06]} 1-0


[Site "https://www.chess.com"]

[Event "Titled Tuesday Blitz February 14 Early 2023"]
[White "Chernov, Mikhail"]
[Black "Manukyan, Sargis A."]
[WhiteFideId "24143170"]
[BlackFideId "13303970"]
[WhiteElo "2205"]
[BlackElo "2158"]
[Result "0-1"]
[Round "03"]
[TimeControl "180+2"]
[Date "2023.02.15"]
[WhiteClock "0:00:04"]
[BlackClock "0:00:14"]

1. e4 {[%clk 0:03:00]}  c5 {[%clk 0:03:00]} 2. Nf3 {[%clk 0:03:00]}  d6 {[%clk 0:03:00]} 3. d4 {[%clk 0:03:01]}  cxd4 {[%clk 0:03:01]} 4. Nxd4 {[%clk 0:03:01]}  Nf6 {[%clk 0:03:01]} 5. Nc3 {[%clk 0:03:02]}  g6 {[%clk 0:03:01]} 6. Be3 {[%clk 0:03:02]}  Bg7 {[%clk 0:03:02]} 7. f3 {[%clk 0:03:03]}  O-O {[%clk 0:03:03]} 8. Qd2 {[%clk 0:03:04]}  Nc6 {[%clk 0:03:03]} 9. g4 {[%clk 0:03:02]}  Nxd4 {[%clk 0:02:58]} 10. Bxd4 {[%clk 0:03:02]}  Be6 {[%clk 0:02:58]} 11. h4 {[%clk 0:02:59]}  Qa5 {[%clk 0:02:58]} 12. h5 {[%clk 0:02:55]}  Rfc8 {[%clk 0:02:57]} 13. O-O-O {[%clk 0:02:48]}  Rab8 {[%clk 0:02:55]} 14. Kb1 {[%clk 0:02:48]}  b5 {[%clk 0:02:55]} 15. hxg6 {[%clk 0:02:38]}  hxg6 {[%clk 0:02:46]} 16. b3 {[%clk 0:02:20]}  b4 {[%clk 0:02:10]} 17. Nd5 {[%clk 0:01:58]}  Bxd5 {[%clk 0:02:10]} 18. exd5 {[%clk 0:01:54]}  Qxd5 {[%clk 0:02:09]} 19. Bc4 {[%clk 0:01:48]}  Rxc4 {[%clk 0:01:56]} 20. bxc4 {[%clk 0:01:49]}  Qxc4 {[%clk 0:01:57]} 21. Bb2 {[%clk 0:01:19]}  a5 {[%clk 0:01:53]} 22. g5 {[%clk 0:01:04]}  Nh5 {[%clk 0:01:45]} 23. Bxg7 {[%clk 0:01:03]}  Kxg7 {[%clk 0:01:40]} 24. Rhe1 {[%clk 0:00:55]}  Kf8 {[%clk 0:01:29]} 25. Re4 {[%clk 0:00:46]}  Qc5 {[%clk 0:01:27]} 26. Rde1 {[%clk 0:00:43]}  Rb7 {[%clk 0:01:26]} 27. f4 {[%clk 0:00:21]}  a4 {[%clk 0:01:22]} 28. Qd4 {[%clk 0:00:09]}  Qxd4 {[%clk 0:01:17]} 29. Rxd4 {[%clk 0:00:10]}  Ng3 {[%clk 0:01:15]} 30. Rc4 {[%clk 0:00:07]}  Nf5 {[%clk 0:01:12]} 31. Ree4 {[%clk 0:00:07]}  b3 {[%clk 0:01:00]} 32. cxb3 {[%clk 0:00:06]}  axb3 {[%clk 0:00:58]} 33. a4 {[%clk 0:00:07]}  Kg7 {[%clk 0:00:51]} 34. Rb4 {[%clk 0:00:08]}  Rd7 {[%clk 0:00:49]} 35. a5 {[%clk 0:00:07]}  d5 {[%clk 0:00:49]} 36. Re5 {[%clk 0:00:07]}  d4 {[%clk 0:00:47]} 37. a6 {[%clk 0:00:06]}  d3 {[%clk 0:00:46]} 38. Rb7 {[%clk 0:00:06]}  Rd6 {[%clk 0:00:33]} 39. Kc1 {[%clk 0:00:03]}  Rxa6 {[%clk 0:00:31]} 40. Kd2 {[%clk 0:00:04]}  Ra4 {[%clk 0:00:19]} 41. Kxd3 {[%clk 0:00:03]}  Rxf4 {[%clk 0:00:18]} 42. Rxb3 {[%clk 0:00:04]}  Rg4 {[%clk 0:00:17]} 43. Rb7 {[%clk 0:00:03]}  Rxg5 {[%clk 0:00:17]} 44. Ra5 {[%clk 0:00:04]}  Rg3+ {[%clk 0:00:16]} 45. Ke2 {[%clk 0:00:04]}  Re3+ {[%clk 0:00:16]} 46. Kf2 {[%clk 0:00:04]}  Re6 {[%clk 0:00:17]} 47. Ra8 {[%clk 0:00:04]}  Rf6 {[%clk 0:00:14]} 48. Rb5 {[%clk 0:00:04]}  Nd6+ {[%clk 0:00:14]} 0-1


[Site "https://www.chess.com"]

[Event "Titled Tuesday Blitz February 14 Early 2023"]
[White "Tan, Jun Ying"]
[Black "Gurevich, Dmitry"]
[WhiteFideId "5710413"]
[BlackFideId "2000407"]
[WhiteElo "2307"]
[BlackElo "2393"]
[Result "1-0"]
[Round "03"]
[TimeControl "180+2"]
[Date "2023.02.15"]
[WhiteClock "0:00:17"]
[BlackClock "0:00:08"]

1. d4 {[%clk 0:03:00]}  Nf6 {[%clk 0:03:00]} 2. c4 {[%clk 0:03:01]}  a6 {[%clk 0:03:00]} 3. Nc3 {[%clk 0:03:00]}  c5 {[%clk 0:03:00]} 4. e3 {[%clk 0:02:57]}  e6 {[%clk 0:02:58]} 5. Nf3 {[%clk 0:02:56]}  d5 {[%clk 0:02:57]} 6. a3 {[%clk 0:02:56]}  Nc6 {[%clk 0:02:56]} 7. Be2 {[%clk 0:02:55]}  dxc4 {[%clk 0:02:54]} 8. Bxc4 {[%clk 0:02:55]}  b5 {[%clk 0:02:54]} 9. Ba2 {[%clk 0:02:55]}  Bb7 {[%clk 0:02:54]} 10. O-O {[%clk 0:02:55]}  Be7 {[%clk 0:02:50]} 11. dxc5 {[%clk 0:02:52]}  Bxc5 {[%clk 0:02:47]} 12. b4 {[%clk 0:02:52]}  Bb6 {[%clk 0:02:43]} 13. Bb2 {[%clk 0:02:50]}  O-O {[%clk 0:02:42]} 14. Qe2 {[%clk 0:02:49]}  Qe7 {[%clk 0:02:37]} 15. Rac1 {[%clk 0:02:44]}  Rad8 {[%clk 0:02:30]} 16. Bb1 {[%clk 0:02:42]}  e5 {[%clk 0:02:27]} 17. Ne4 {[%clk 0:02:35]}  Nd7 {[%clk 0:02:00]} 18. Rfd1 {[%clk 0:02:20]}  h6 {[%clk 0:01:52]} 19. Nd6 {[%clk 0:02:15]}  Ba8 {[%clk 0:01:49]} 20. Nf5 {[%clk 0:01:51]}  Qe8 {[%clk 0:01:47]} 21. N3h4 {[%clk 0:01:48]}  Nf6 {[%clk 0:01:25]} 22. Rxd8 {[%clk 0:01:11]}  Qxd8 {[%clk 0:01:18]} 23. Rd1 {[%clk 0:01:06]}  Qe8 {[%clk 0:01:09]} 24. Nd6 {[%clk 0:00:56]}  Qe6 {[%clk 0:01:04]} 25. Nhf5 {[%clk 0:00:51]}  Kh8 {[%clk 0:00:57]} 26. Ba1 {[%clk 0:00:46]}  Nd5 {[%clk 0:00:24]} 27. Ba2 {[%clk 0:00:41]}  Nd8 {[%clk 0:00:19]} 28. Qf3 {[%clk 0:00:24]}  Nxb4 {[%clk 0:00:15]} 29. Bxe6 {[%clk 0:00:23]}  Bxf3 {[%clk 0:00:14]} 30. gxf3 {[%clk 0:00:21]}  fxe6 {[%clk 0:00:14]} 31. Nh4 {[%clk 0:00:18]}  Rf6 {[%clk 0:00:08]} 32. axb4 {[%clk 0:00:18]}  g5 {[%clk 0:00:08]} 33. Ne4 {[%clk 0:00:17]} 1-0


[Site "https://www.chess.com"]

[Event "Titled Tuesday Blitz February 14 Early 2023"]
[White "Rodriguez Fontecha, Marcos"]
[Black "Prado Lobo, Jonas"]
[WhiteFideId "2256576"]
[BlackFideId "32050666"]
[WhiteElo "2309"]
[BlackElo "2313"]
[Result "1/2-1/2"]
[Round "03"]
[TimeControl "180+2"]
[Date "2023.02.15"]
[WhiteClock "0:00:01"]
[BlackClock "0:00:07"]

1. Nf3 {[%clk 0:03:00]}  Nf6 {[%clk 0:02:59]} 2. g4 {[%clk 0:03:00]}  g6 {[%clk 0:03:00]} 3. g5 {[%clk 0:03:00]}  Nd5 {[%clk 0:02:55]} 4. e4 {[%clk 0:03:00]}  Nb6 {[%clk 0:02:55]} 5. a4 {[%clk 0:02:59]}  a5 {[%clk 0:02:45]} 6. h4 {[%clk 0:03:00]}  d6 {[%clk 0:02:37]} 7. h5 {[%clk 0:02:59]}  Bg7 {[%clk 0:02:33]} 8. h6 {[%clk 0:03:00]}  Bf8 {[%clk 0:02:30]} 9. b3 {[%clk 0:03:00]}  Bg4 {[%clk 0:02:27]} 10. Bb2 {[%clk 0:02:59]}  e5 {[%clk 0:02:27]} 11. Rg1 {[%clk 0:02:55]}  Bh5 {[%clk 0:02:23]} 12. Be2 {[%clk 0:02:55]}  Be7 {[%clk 0:02:19]} 13. d4 {[%clk 0:02:33]}  Bxf3 {[%clk 0:01:46]} 14. Bxf3 {[%clk 0:02:34]}  Nc6 {[%clk 0:01:46]} 15. d5 {[%clk 0:02:24]}  Nb8 {[%clk 0:01:46]} 16. Qd2 {[%clk 0:02:23]}  O-O {[%clk 0:01:41]} 17. Nc3 {[%clk 0:02:21]}  Na6 {[%clk 0:01:36]} 18. Rd1 {[%clk 0:02:13]}  Nc5 {[%clk 0:01:27]} 19. Nb5 {[%clk 0:02:12]}  f5 {[%clk 0:01:21]} 20. gxf6 {[%clk 0:01:54]}  Bxf6 {[%clk 0:01:18]} 21. Qe3 {[%clk 0:01:52]}  Bh4 {[%clk 0:01:12]} 22. Rg4 {[%clk 0:01:49]}  Qf6 {[%clk 0:00:49]} 23. Ke2 {[%clk 0:01:38]}  Rf7 {[%clk 0:00:48]} 24. Rh1 {[%clk 0:01:35]}  Qxf3+ {[%clk 0:00:28]} 25. Qxf3 {[%clk 0:01:34]}  Rxf3 {[%clk 0:00:29]} 26. Kxf3 {[%clk 0:01:20]}  Rf8+ {[%clk 0:00:30]} 27. Ke2 {[%clk 0:01:21]}  Rxf2+ {[%clk 0:00:28]} 28. Kd1 {[%clk 0:01:21]}  Bd8 {[%clk 0:00:23]} 29. Ba3 {[%clk 0:00:38]}  Ncd7 {[%clk 0:00:17]} 30. Rhg1 {[%clk 0:00:28]}  Nf6 {[%clk 0:00:17]} 31. R4g2 {[%clk 0:00:27]}  Rf4 {[%clk 0:00:13]} 32. Nc3 {[%clk 0:00:27]}  Nxe4 {[%clk 0:00:13]} 33. Nxe4 {[%clk 0:00:26]}  Rxe4 {[%clk 0:00:13]} 34. c4 {[%clk 0:00:25]}  Rf4 {[%clk 0:00:11]} 35. Ke2 {[%clk 0:00:25]}  Nd7 {[%clk 0:00:11]} 36. Rf1 {[%clk 0:00:22]}  g5 {[%clk 0:00:11]} 37. Bc1 {[%clk 0:00:20]}  Re4+ {[%clk 0:00:06]} 38. Kf3 {[%clk 0:00:18]}  Rd4 {[%clk 0:00:05]} 39. Bxg5 {[%clk 0:00:18]}  Bxg5 {[%clk 0:00:04]} 40. Rxg5+ {[%clk 0:00:19]}  Kf7 {[%clk 0:00:04]} 41. Ke3+ {[%clk 0:00:18]}  Ke7 {[%clk 0:00:01]} 42. Rg7+ {[%clk 0:00:19]}  Ke8 {[%clk 0:00:01]} 43. Rxh7 {[%clk 0:00:19]}  Rh4 {[%clk 0:00:01]} 44. Rff7 {[%clk 0:00:16]}  Rh3+ {[%clk 0:00:01]} 45. Kd2 {[%clk 0:00:16]}  Nc5 {[%clk 0:00:02]} 46. Re7+ {[%clk 0:00:16]}  Kd8 {[%clk 0:00:03]} 47. Rhg7 {[%clk 0:00:14]}  Rxh6 {[%clk 0:00:02]} 48. Rxc7 {[%clk 0:00:13]}  Rh2+ {[%clk 0:00:02]} 49. Ke3 {[%clk 0:00:13]}  Rh3+ {[%clk 0:00:02]} 50. Ke2 {[%clk 0:00:12]}  Rxb3 {[%clk 0:00:02]} 51. Rcf7 {[%clk 0:00:12]}  Rb2+ {[%clk 0:00:02]} 52. Kf3 {[%clk 0:00:11]}  Ke8 {[%clk 0:00:03]} 53. Re7+ {[%clk 0:00:11]}  Kf8 {[%clk 0:00:03]} 54. Rgf7+ {[%clk 0:00:11]}  Kg8 {[%clk 0:00:04]} 55. Rc7 {[%clk 0:00:10]}  e4+ {[%clk 0:00:05]} 56. Ke3 {[%clk 0:00:10]}  Rb3+ {[%clk 0:00:05]} 57. Ke2 {[%clk 0:00:11]}  Rb2+ {[%clk 0:00:05]} 58. Kf1 {[%clk 0:00:11]}  Rb1+ {[%clk 0:00:06]} 59. Kg2 {[%clk 0:00:11]}  Rb2+ {[%clk 0:00:06]} 60. Kg3 {[%clk 0:00:12]}  Rb3+ {[%clk 0:00:06]} 61. Kg4 {[%clk 0:00:12]}  e3 {[%clk 0:00:06]} 62. Rfe7 {[%clk 0:00:11]}  Kf8 {[%clk 0:00:06]} 63. Rf7+ {[%clk 0:00:11]}  Ke8 {[%clk 0:00:06]} 64. Rce7+ {[%clk 0:00:11]}  Kd8 {[%clk 0:00:06]} 65. Kf5 {[%clk 0:00:11]}  e2 {[%clk 0:00:06]} 66. Rxe2 {[%clk 0:00:10]}  Rf3+ {[%clk 0:00:06]} 67. Kg6 {[%clk 0:00:10]}  Rxf7 {[%clk 0:00:06]} 68. Kxf7 {[%clk 0:00:11]}  Nxa4 {[%clk 0:00:07]} 69. Ke6 {[%clk 0:00:11]}  Kc7 {[%clk 0:00:07]} 70. Ra2 {[%clk 0:00:11]}  Nc5+ {[%clk 0:00:07]} 71. Kf5 {[%clk 0:00:12]}  a4 {[%clk 0:00:07]} 72. Kf4 {[%clk 0:00:10]}  Kb6 {[%clk 0:00:07]} 73. Ke3 {[%clk 0:00:10]}  Ka5 {[%clk 0:00:07]} 74. Rb2 {[%clk 0:00:08]}  Nb3 {[%clk 0:00:07]} 75. c5 {[%clk 0:00:05]}  Nxc5 {[%clk 0:00:06]} 76. Kd4 {[%clk 0:00:03]}  b5 {[%clk 0:00:06]} 77. Kc3 {[%clk 0:00:02]}  Nb3 {[%clk 0:00:05]} 78. Rh2 {[%clk 0:00:01]}  b4+ {[%clk 0:00:05]} 79. Kb2 {[%clk 0:00:01]}  Nc5 {[%clk 0:00:05]} 80. Ka2 {[%clk 0:00:02]}  b3+ {[%clk 0:00:05]} 81. Ka3 {[%clk 0:00:02]}  Kb5 {[%clk 0:00:05]} 82. Rh4 {[%clk 0:00:02]}  Ka5 {[%clk 0:00:05]} 83. Rb4 {[%clk 0:00:03]}  Ka6 {[%clk 0:00:04]} 84. Rb8 {[%clk 0:00:03]}  Ka7 {[%clk 0:00:03]} 85. Rd8 {[%clk 0:00:03]}  Nb7 {[%clk 0:00:04]} 86. Rd7 {[%clk 0:00:04]}  Kb6 {[%clk 0:00:04]} 87. Rg7 {[%clk 0:00:04]}  Nc5 {[%clk 0:00:02]} 88. Re7 {[%clk 0:00:03]}  Kb5 {[%clk 0:00:03]} 89. Re3 {[%clk 0:00:04]}  Kc4 {[%clk 0:00:03]} 90. Rh3 {[%clk 0:00:04]}  Kxd5 {[%clk 0:00:04]} 91. Rc3 {[%clk 0:00:04]}  Kd4 {[%clk 0:00:04]} 92. Rh3 {[%clk 0:00:04]}  d5 {[%clk 0:00:04]} 93. Rh4+ {[%clk 0:00:05]}  Kc3 {[%clk 0:00:04]} 94. Rh3+ {[%clk 0:00:06]}  Kc4 {[%clk 0:00:04]} 95. Rh4+ {[%clk 0:00:06]}  d4 {[%clk 0:00:05]} 96. Rh1 {[%clk 0:00:07]}  d3 {[%clk 0:00:05]} 97. Rc1+ {[%clk 0:00:07]}  Kd4 {[%clk 0:00:06]} 98. Rh1 {[%clk 0:00:08]}  d2 {[%clk 0:00:06]} 99. Rd1 {[%clk 0:00:07]}  Kc3 {[%clk 0:00:07]} 100. Rh1 {[%clk 0:00:05]}  Kc2 {[%clk 0:00:07]} 101. Rh2 {[%clk 0:00:03]}  Kc1 {[%clk 0:00:07]} 102. Rh1+ {[%clk 0:00:01]}  d1=Q {[%clk 0:00:07]} 103. Re1 {[%clk 0:00:01]}  Qxe1 {[%clk 0:00:07]} 1/2-1/2


[Site "https://www.chess.com"]

[Event "Titled Tuesday Blitz February 14 Early 2023"]
[White "Andrews, Todd"]
[Black "Sourath Biswas"]
[WhiteFideId "2012456"]
[BlackFideId "35091484"]
[WhiteElo "2220"]
[BlackElo "2281"]
[Result "1-0"]
[Round "03"]
[TimeControl "180+2"]
[Date "2023.02.15"]
[WhiteClock "0:00:10"]
[BlackClock "0:00:07"]

1. e4 {[%clk 0:03:00]}  c6 {[%clk 0:02:57]} 2. d4 {[%clk 0:02:58]}  d5 {[%clk 0:02:54]} 3. Nd2 {[%clk 0:02:59]}  dxe4 {[%clk 0:02:53]} 4. Nxe4 {[%clk 0:03:00]}  Nf6 {[%clk 0:02:52]} 5. Nxf6+ {[%clk 0:03:00]}  exf6 {[%clk 0:02:53]} 6. c3 {[%clk 0:03:00]}  Bd6 {[%clk 0:02:53]} 7. Bd3 {[%clk 0:03:01]}  O-O {[%clk 0:02:52]} 8. Qc2 {[%clk 0:03:01]}  Re8+ {[%clk 0:02:53]} 9. Ne2 {[%clk 0:03:02]}  h5 {[%clk 0:02:53]} 10. Be3 {[%clk 0:03:01]}  Nd7 {[%clk 0:02:41]} 11. O-O-O {[%clk 0:03:01]}  Nf8 {[%clk 0:02:41]} 12. Kb1 {[%clk 0:03:00]}  Be6 {[%clk 0:02:35]} 13. c4 {[%clk 0:02:44]}  b5 {[%clk 0:02:24]} 14. d5 {[%clk 0:02:35]}  cxd5 {[%clk 0:02:13]} 15. cxd5 {[%clk 0:02:30]}  Bd7 {[%clk 0:01:42]} 16. Nd4 {[%clk 0:02:24]}  Rc8 {[%clk 0:01:37]} 17. Qb3 {[%clk 0:02:09]}  Re5 {[%clk 0:01:18]} 18. Bf4 {[%clk 0:01:53]}  Qb6 {[%clk 0:01:17]} 19. Bxe5 {[%clk 0:01:51]}  Bxe5 {[%clk 0:01:18]} 20. Nf3 {[%clk 0:01:49]}  Bd6 {[%clk 0:01:18]} 21. Rd2 {[%clk 0:01:36]}  a5 {[%clk 0:01:18]} 22. Bc2 {[%clk 0:01:30]}  a4 {[%clk 0:01:12]} 23. Qd3 {[%clk 0:01:30]}  g6 {[%clk 0:01:13]} 24. Nd4 {[%clk 0:01:23]}  a3 {[%clk 0:01:08]} 25. b3 {[%clk 0:01:19]}  b4 {[%clk 0:01:09]} 26. Re1 {[%clk 0:01:15]}  Bf4 {[%clk 0:00:39]} 27. Rdd1 {[%clk 0:01:09]}  Be5 {[%clk 0:00:24]} 28. h3 {[%clk 0:01:07]}  Qc5 {[%clk 0:00:21]} 29. Re2 {[%clk 0:01:06]}  Kg7 {[%clk 0:00:17]} 30. f3 {[%clk 0:01:00]}  Nh7 {[%clk 0:00:16]} 31. g4 {[%clk 0:00:57]}  hxg4 {[%clk 0:00:16]} 32. hxg4 {[%clk 0:00:57]}  Ng5 {[%clk 0:00:17]} 33. Red2 {[%clk 0:00:49]}  Nh3 {[%clk 0:00:16]} 34. Rh1 {[%clk 0:00:28]}  Nf4 {[%clk 0:00:15]} 35. Qe3 {[%clk 0:00:28]}  Bxd4 {[%clk 0:00:11]} 36. Qxf4 {[%clk 0:00:19]}  Be3 {[%clk 0:00:07]} 37. Qh2 {[%clk 0:00:13]}  Bxd2 {[%clk 0:00:07]} 38. Qxd2 {[%clk 0:00:11]}  Qc3 {[%clk 0:00:07]} 39. Qh6+ {[%clk 0:00:10]} 1-0


[Site "https://www.chess.com"]